bitfinex/quotes_ETHUSD_20251111
["timestamp","ask_amount","ask_price","bid_price","bid_amount"]
[1762861349924,0.0012,3583.8,3583.7,11.09573334]
[1762861351821,0.002,3584.2,3583.9,2.79025642]
[1762861352025,0.002,3584.2,3583.9,6.06423018]
[1762861352226,0.002,3584.2,3583.9,6.53493018]
[1762861352923,0.002,3584.2,3583.9,6.64667091]
[1762861356053,0.002,3584.2,3583.9,6.17597091]
[1762861356442,0.002,3584.2,3583.9,6.81797091]
[1762861356678,0.002,3584.2,3583.9,7.28867091]
[1762861360077,1e-08,3584.2,3584.1,5.10431672]
[1762861360282,1e-08,3584.2,3584.1,9.90674258]
[1762861360775,1e-08,3584.2,3584.1,9.86858207]
[1762861360968,1e-08,3584.2,3584.1,10.51058207]
[1762861361345,1e-08,3584.2,3584.1,10.98128207]
[1762861362081,0.002,3584.3,3584.2,4.45523887]
[1762861362374,0.002,3584.3,3584.2,6.67439078]
[1762861362778,0.002,3584.3,3584.2,7.17019078]
[1762861366082,1e-08,3584.7,3584.6,0.904604]
[1762861366284,0.49840001,3584.7,3584.6,4.45492754]
[1762861366483,1.44960001,3584.7,3584.6,7.82948161]
[1762861366783,1.44960001,3584.7,3584.6,8.79606775]
[1762861367352,0.95680001,3584.7,3584.6,8.79606775]
[1762861367681,1.44960001,3584.7,3584.6,8.79606775]
[1762861368068,1.45160001,3584.7,3584.6,8.79606775]
[1762861368270,1.45080001,3584.7,3584.6,8.79606775]
[1762861369554,0.95800001,3584.7,3584.6,8.79606775]
[1762861370197,1.45080001,3584.7,3584.6,8.79606775]
[1762861370365,1.45080001,3584.7,3584.6,7.82948161]
[1762861373090,0.95800001,3584.7,3584.6,7.82948161]
[1762861373862,1.45080001,3584.7,3584.6,7.82948161]
[1762861374483,1.45080001,3584.7,3584.6,0.83804617]
[1762861374694,1.94960001,3584.7,3584.6,0.83804617]
[1762861374918,1.94960001,3584.7,3584.2,2.78999347]
[1762861374919,0.49760001,3584.3,3584.2,2.78999347]
[1762861375066,0.78330001,3584.3,3584.2,2.78999347]
[1762861375389,1.27610001,3584.3,3584.2,2.78999347]
[1762861375761,1.27610001,3584.3,3584.2,3.19549747]
[1762861376600,0.78330001,3584.3,3584.2,3.19549747]
[1762861376808,1.24480001,3584.3,3584.2,4.03363964]
[1762861378411,1.24480001,3584.3,3584.2,3.19549747]
[1762861380682,1.24480001,3584.3,3584.2,4.03364901]
[1762861381905,1.24480001,3584.3,3584.2,1.24365554]
[1762861382107,1.24480001,3584.3,3584.2,0.405504]
[1762861382315,1.24480001,3584.3,3584.2,3.19552687]
[1762861386743,1.24480001,3584.3,3584.2,6.57008094]
[1762861387547,1.3892,3584.3,3584.1,0.001]
[1762861387699,2.12950001,3584.2,3584.1,0.001]
[1762861388529,2.12950001,3584.2,3584.1,2.79110072]
[1762861388530,1.44190001,3584.2,3584.1,2.79110072]
[1762861389298,0.98040001,3584.2,3584.1,3.19660472]
[1762861389534,1.44190001,3584.2,3584.1,3.19660472]
[1762861390104,0.98040001,3584.2,3584.1,3.19660472]
[1762861392138,0.98040001,3584.2,3584.1,3.88497135]
[1762861392139,0.97960001,3584.2,3584.1,3.88497135]
[1762861392518,0.49680001,3584.2,3584.1,3.88497135]
[1762861392924,0.49680001,3584.2,3584.1,5.59868335]
[1762861393323,0.49680001,3584.2,3584.1,6.24268335]
[1762861393631,0.97960001,3584.2,3584.1,5.78868335]
[1762861395229,0.49680001,3584.2,3584.1,5.78868335]
[1762861395526,0.97960001,3584.2,3584.1,5.78868335]
[1762861396628,1.44110001,3584.2,3584.1,4.52897135]
[1762861398362,1.44110001,3584.2,3584.1,3.84060472]
[1762861398825,1.44110001,3584.2,3584.1,7.52179962]
[1762861399461,1.44110001,3584.2,3584.1,6.87779962]
[1762861399662,1.44110001,3584.2,3584.1,0.001]
[1762861399853,1.93990001,3584.2,3584.1,0.001]
[1762861400254,1.44110001,3584.2,3584.1,2.79110072]
[1762861400458,1.44110001,3584.2,3584.1,0.001]
[1762861401550,2.14821001,3584.2,3584.1,0.001]
[1762861406588,4.93823288,3584.2,3584.1,0.001]
[1762861406967,2.14821001,3584.2,3584.1,0.001]
[1762861407791,0.97960001,3584.2,3584.1,3.19660472]
[1762861407978,0.49680001,3584.2,3584.1,3.19660472]
[1762861408150,0.49680001,3584.2,3584.1,4.03480778]
[1762861408773,0.49680001,3584.2,3584.1,4.51460778]
[1762861409384,0.49680001,3584.2,3584.1,4.03480778]
[1762861409593,0.49680001,3584.2,3584.1,4.47204244]
[1762861409787,0.49680001,3584.2,3584.1,4.95184244]
[1762861410166,0.98170001,3584.2,3584.1,4.03480778]
[1762861410366,0.98170001,3584.2,3584.1,0.001]
[1762861410367,1.97530001,3584.2,3584.1,0.001]
[1762861410582,1.97530001,3584.2,3584.1,2.79110072]
[1762861411500,1.97530001,3584.2,3584.1,0.001]
[1762861411695,1.97530001,3584.2,3584.1,3.6821949]
[1762861411907,1.97530001,3584.2,3584.1,6.47229562]
[1762861412297,1.97530001,3584.2,3584.1,3.6821949]
[1762861412596,1.97530001,3584.2,3584.1,6.47229562]
[1762861412597,1.13880001,3584.2,3584.1,6.47229562]
[1762861412905,0.49680001,3584.2,3584.1,8.65217296]
[1762861413062,0.49680001,3584.2,3584.1,9.4903362]
[1762861413464,0.49680001,3584.2,3584.1,9.0105362]
[1762861413994,0.49680001,3584.2,3584.1,9.4903362]
[1762861414597,0.49680001,3584.2,3584.1,9.9494362]
[1762861414797,0.49680001,3584.2,3584.1,11.2091482]
[1762861417125,0.49600001,3584.2,3584.1,11.2091482]
[1762861418120,0.49800001,3584.7,3584.6,3.19521554]
[1762861418424,0.49800001,3584.7,3584.6,6.87641044]
[1762861418592,0.49800001,3584.7,3584.6,12.0950066]
[1762861418791,0.49800001,3584.7,3584.6,12.9230066]
[1762861419318,0.49800001,3584.7,3584.6,14.1827186]
[1762861420033,0.49800001,3584.7,3584.6,13.7236186]
[1762861421027,0.49800001,3584.7,3584.6,10.0424237]
[1762861421232,0.49800001,3584.7,3584.6,13.7236186]
[1762861422835,0.002,3584.7,3584.6,13.7236186]
[1762861423022,0.002,3584.7,3584.6,14.1827186]
[1762861423345,0.002,3584.7,3584.6,12.9230066]
[1762861426588,0.98290001,3584.7,3584.6,9.5626237]
[1762861426792,0.98290001,3584.7,3584.6,13.2438186]
[1762861427309,0.49800001,3584.7,3584.6,13.7236186]
[1762861430435,0.49800001,3584.7,3584.6,13.2438186]
[1762861430850,1.47770001,3584.7,3584.6,13.2438186]
[1762861431313,1.47770001,3584.7,3584.6,11.9841066]
[1762861432125,1.47770001,3584.7,3584.6,8.3029117]
[1762861432346,1.47770001,3584.7,3584.6,7.70441044]
[1762861433713,1.47770001,3584.7,3584.6,6.47090644]
[1762861433913,0.98290001,3584.7,3584.6,6.87641044]
[1762861434146,0.98290001,3584.7,3584.3,0.83810471]
[1762861434343,0.002,3584.7,3584.6,3.6811949]
[1762861434530,0.98290001,3584.7,3584.6,6.47090644]
[1762861434737,0.49800001,3584.7,3584.6,6.87641044]
[1762861434938,0.49800001,3584.7,3584.6,11.03740534]
[1762861435109,0.49800001,3584.7,3584.6,12.53024259]
[1762861435850,0.49800001,3584.7,3584.6,13.78995459]
[1762861440661,0.49720001,3584.7,3584.6,13.31015459]
[1762861441402,0.95720001,3584.7,3584.6,4.28254879]
[1762861441567,1.43150001,3584.7,3584.6,6.47090644]
[1762861442153,1.43150001,3584.7,3584.6,6.87641044]
[1762861442553,1.43150001,3584.7,3584.6,6.47090644]
[1762861442949,1.43150001,3584.7,3584.6,6.87641044]
[1762861444876,0.2885,3584.7,3584.6,10.55760534]
[1762861445077,0.95720001,3584.7,3584.6,11.95654548]
[1762861445289,1.43150001,3584.7,3584.6,6.87641044]
[1762861448672,1.43150001,3584.7,3584.6,4.0866989]
[1762861448912,1.43150001,3584.7,3584.6,6.87641044]
[1762861449855,1.43150001,3584.7,3584.6,3.19521554]
[1762861451088,0.49600001,3584.6,3584.5,3.6811949]
[1762861451274,0.49600001,3584.6,3584.1,0.001]
[1762861451275,0.99480001,3584.4,3584.3,3.6811949]
[1762861451479,0.99480001,3584.4,3584.3,6.47113993]
[1762861451678,1.92910001,3584.4,3584.3,6.47113993]
[1762861452282,1.92910001,3584.4,3584.3,3.6811949]
[1762861453900,2.20772001,3584.4,3584.1,0.001]
[1762861454198,1.45480001,3584.2,3584.1,0.001]
[1762861454352,1.45480001,3584.2,3584.1,3.6821949]
[1762861454563,1.43030001,3584.2,3584.1,6.47229562]
[1762861454885,0.95600001,3584.2,3584.1,6.47229562]
[1762861455085,0.49600001,3584.2,3584.1,6.87779962]
[1762861455303,0.49600001,3584.2,3584.1,8.70922249]
[1762861456527,0.49600001,3584.2,3584.1,9.18362249]
[1762861456987,0.49600001,3584.2,3584.1,8.70922249]
[1762861458982,0.49600001,3584.2,3584.1,8.40201525]
[1762861461133,0.49600001,3584.2,3584.1,7.90571525]
[1762861461313,0.49600001,3584.2,3584.1,6.57059238]
[1762861461509,1.43030001,3584.2,3584.1,0.001]
[1762861462122,1.43030001,3584.2,3584.1,3.37498766]
[1762861462123,0.95600001,3584.2,3584.1,3.37498766]
[1762861462323,0.49600001,3584.2,3584.1,6.57059238]
[1762861462617,1.43030001,3584.2,3584.1,6.57059238]
[1762861464314,1.42950001,3584.2,3584.1,6.57059238]
[1762861464819,1.42950001,3584.2,3584.1,0.406504]
[1762861465035,1.42950001,3584.2,3584.1,6.57059238]
[1762861465220,1.42950001,3584.2,3584.1,3.78049166]
[1762861465423,1.92830001,3584.2,3584.1,3.37498766]
[1762861465643,2.18533001,3584.2,3584.1,0.001]
[1762861467837,1.42950001,3584.2,3584.1,3.37498766]
[1762861469155,0.95520001,3584.2,3584.1,6.16508838]
[1762861470033,1.41310001,3584.2,3584.1,6.16508838]
[1762861470239,0.99000001,3584.2,3584.1,6.57059238]
[1762861470451,1.44790001,3584.2,3584.1,6.57059238]
[1762861470652,1.44790001,3584.2,3584.1,3.78049166]
[1762861471083,2.09149001,3584.2,3584.1,3.37498766]
[1762861471282,2.73449001,3584.2,3584.1,0.001]
[1762861472144,1.77779001,3584.2,3584.1,0.001]
[1762861472342,2.23569001,3584.2,3584.1,0.001]
[1762861473036,2.73449001,3584.2,3584.1,0.001]
[1762861473484,2.58970001,3584.2,3584.1,0.001]
[1762861473773,1.63300001,3584.2,3584.1,0.001]
[1762861473933,2.09090001,3584.2,3584.1,0.001]
[1762861474675,2.09090001,3584.2,3584.1,2.79110072]
[1762861476060,1.1398,3584.2,3584.1,0.406504]
[1762861476259,2.09290001,3584.2,3584.1,3.19660472]
[1762861476759,1.14020001,3584.2,3584.1,3.65430472]
[1762861477273,1.14020001,3584.2,3584.1,4.63635158]
[1762861477877,0.49520001,3584.2,3584.1,4.63635158]
[1762861478605,0.0012,3584.7,3584.1,4.63635158]
[1762861478606,0.49640001,3584.7,3584.6,2.78971154]
[1762861478806,2.09410001,3584.7,3584.6,3.37398766]
[1762861479108,2.09410001,3584.7,3584.6,6.1636992]
[1762861479306,2.09410001,3584.7,3584.6,3.37398766]
[1762861479599,2.09410001,3584.7,3584.6,6.1636992]
[1762861480317,0.49520001,3584.2,3584.1,0.001]
[1762861480498,1.63500001,3584.2,3584.1,0.001]
[1762861480708,2.09290001,3584.2,3584.1,0.001]
[1762861481078,2.59170001,3584.2,3584.1,0.001]
[1762861481482,5.38172288,3584.2,3584.1,0.001]
[1762861481676,2.59170001,3584.2,3584.1,0.001]
[1762861484976,5.38172288,3584.2,3584.1,0.001]
[1762861485192,2.59170001,3584.2,3584.1,0.001]
[1762861485390,5.38172288,3584.2,3584.1,0.001]
[1762861485588,2.59170001,3584.2,3584.1,0.001]
[1762861486979,1.94670001,3584.2,3584.1,0.001]
[1762861487178,2.59370001,3584.2,3584.1,0.001]
[1762861487624,1.14220001,3584.2,3584.1,0.001]
[1762861487985,2.09490001,3584.2,3584.1,0.001]
[1762861488201,2.09410001,3584.2,3584.1,0.001]
[1762861488602,1.63620001,3584.2,3584.1,0.001]
[1762861488925,1.63620001,3584.2,3584.1,3.24880072]
[1762861488926,1.14140001,3584.2,3584.1,3.24880072]
[1762861489125,1.14140001,3584.2,3584.1,4.19030515]
[1762861489682,1.14140001,3584.2,3584.1,4.59580915]
[1762861490338,0.49640001,3584.2,3584.1,4.59580915]
[1762861491244,0.49640001,3584.2,3584.1,0.406504]
[1762861491245,0.99120001,3584.2,3584.1,0.406504]
[1762861491538,0.49640001,3584.2,3584.1,3.65430472]
[1762861492296,0.99120001,3584.2,3584.1,6.57059238]
[1762861498356,0.49640001,3584.2,3584.1,7.04949238]
[1762861501216,0.49640001,3584.2,3584.1,6.57059238]
[1762861501615,1.41670001,3584.2,3584.1,3.78049166]
[1762861502019,2.70117001,3584.2,3584.1,0.001]
[1762861502217,2.79017857,3584.0,3583.9,0.001]
[1762861502454,6.75090488,3584.2,3583.7,0.001]
[1762861502455,3.78353429,3583.8,3583.7,0.001]
[1762861502656,1.93390001,3583.8,3583.7,0.001]
[1762861502863,2.39280001,3583.8,3583.7,0.001]
[1762861503582,5.18313429,3583.8,3583.7,0.001]
[1762861503721,2.39280001,3583.8,3583.7,0.001]
[1762861504149,5.18313429,3583.8,3583.7,0.001]
[1762861504355,1.93390001,3583.8,3583.7,0.001]
[1762861504528,2.39280001,3583.8,3583.7,0.001]
[1762861504732,1.60180001,3583.8,3583.7,0.001]
[1762861504933,1.60180001,3583.8,3583.7,2.79141214]
[1762861505174,1.60180001,3583.8,3583.7,0.001]
[1762861505319,1.41470001,3583.8,3583.7,0.001]
[1762861505522,1.60180001,3583.8,3583.7,0.001]
[1762861505718,1.60180001,3583.8,3583.7,2.79141214]
[1762861505933,0.49440001,3583.8,3583.7,3.67581614]
[1762861506136,0.49440001,3583.9,3583.8,3.19583828]
[1762861506360,0.49440001,3583.9,3583.8,7.49922594]
[1762861506859,0.002,3584.2,3584.1,3.19560472]
[1762861507161,0.002,3584.2,3584.1,7.04849238]
[1762861507162,0.49640001,3584.2,3584.1,7.04849238]
[1762861509259,0.49640001,3584.2,3584.1,8.52791062]
[1762861509485,0.49640001,3584.2,3584.1,9.78762262]
[1762861509869,0.49640001,3584.2,3584.1,10.28402263]
[1762861511791,0.49640001,3584.2,3584.1,10.93002263]
[1762861512087,0.002,3584.2,3584.1,10.93002263]
[1762861512291,0.49560001,3584.2,3584.1,10.47952263]
[1762861513255,0.49560001,3584.2,3584.1,10.93002263]
[1762861514987,0.0012,3584.2,3584.1,10.93002263]
[1762861516103,0.0012,3584.2,3584.1,9.67031063]
[1762861518932,0.0012,3584.2,3584.1,14.61018519]
[1762861519579,0.0012,3584.2,3584.1,13.35047319]
[1762861519917,0.0012,3584.2,3584.1,14.15968519]
[1762861520218,0.49560001,3584.2,3584.1,10.78569753]
[1762861522378,0.49560001,3584.2,3584.1,10.13969753]
[1762861522593,0.49560001,3584.2,3584.1,10.78469753]
[1762861523196,0.95700001,3584.2,3584.1,6.87576728]
[1762861523596,1.91470001,3584.2,3584.1,2.79010072]
[1762861523796,1.91470001,3584.2,3584.1,3.19560472]
[1762861524001,1.91470001,3584.2,3584.1,6.87576728]
[1762861525241,0.49560001,3584.2,3584.1,6.87576728]
[1762861525538,0.49560001,3584.2,3584.1,7.35516728]
[1762861529638,0.49560001,3584.2,3584.1,6.87576728]
[1762861530523,0.97490001,3584.2,3584.1,6.87576728]
[1762861530719,0.49560001,3584.2,3584.1,6.87576728]
[1762861531242,0.97490001,3584.2,3584.1,6.87576728]
[1762861532623,0.97490001,3584.2,3584.1,3.68016256]
[1762861532624,1.59577001,3584.2,3584.1,3.68016256]
[1762861532930,1.59577001,3584.2,3583.9,6.47041701]
[1762861532931,0.49440001,3584.0,3583.9,6.47041701]
[1762861533130,0.75880001,3584.0,3583.9,6.47041701]
[1762861533344,1.23460001,3584.0,3583.9,6.47041701]
[1762861534321,1.23460001,3584.0,3583.9,3.68016256]
[1762861534554,1.43708701,3584.0,3583.9,3.68016256]
[1762861534759,1.93588701,3584.0,3583.9,3.68016256]
[1762861535483,1.93588701,3584.0,3583.7,0.001]
[1762861535659,1.16880001,3583.8,3583.7,0.406504]
[1762861535828,1.16880001,3583.8,3583.7,0.001]
[1762861536155,1.16880001,3583.8,3583.7,0.406504]
[1762861536156,1.87838871,3583.8,3583.7,0.406504]
[1762861536347,1.64380001,3583.8,3583.7,3.19691614]
[1762861536880,1.64380001,3583.8,3583.7,6.8770787]
[1762861539782,2.28780001,3583.8,3583.7,6.8770787]
[1762861539980,1.81200001,3583.8,3583.7,6.8770787]
[1762861540672,2.28780001,3583.8,3583.7,6.8770787]
[1762861541294,1.13840001,3583.8,3583.7,11.03664126]
[1762861541446,0.49440001,3583.8,3583.7,11.03664126]
[1762861541650,0.49440001,3583.8,3583.7,12.41965517]
[1762861542788,0.49560001,3584.2,3584.1,0.405504]
[1762861543079,0.49560001,3584.2,3584.1,4.17160472]
[1762861543961,0.49560001,3584.2,3584.1,3.67500472]
[1762861544164,0.49560001,3584.2,3584.1,5.01822563]
[1762861545074,0.49560001,3584.2,3584.1,5.51482563]
[1762861545383,0.49560001,3584.2,3584.1,9.6905882]
[1762861546660,0.0012,3584.2,3584.1,9.6905882]
[1762861546873,0.0012,3584.2,3584.1,10.9503002]
[1762861547774,0.49640001,3584.6,3584.5,10.55561849]
[1762861547968,0.49640001,3584.6,3584.5,12.36956796]
[1762861550071,0.97570001,3584.6,3584.5,6.87545593]
[1762861550272,0.49640001,3584.6,3584.5,6.87545593]
[1762861550503,0.97570001,3584.6,3584.5,6.87545593]
[1762861551099,1.45150001,3584.6,3584.5,6.87545593]
[1762861551400,0.49640001,3584.6,3584.5,7.35485593]
[1762861551587,0.49640001,3584.6,3584.5,8.32138914]
[1762861552061,0.49640001,3584.6,3584.5,7.84198914]
[1762861552501,0.97570001,3584.6,3584.5,7.84198914]
[1762861553406,0.97570001,3584.6,3584.5,4.16182658]
[1762861553704,0.97570001,3584.6,3584.5,7.84198914]
[1762861554202,0.97570001,3584.6,3584.5,6.87545593]
[1762861554809,0.49640001,3584.6,3584.5,7.35485593]
[1762861555798,0.49640001,3584.6,3584.5,6.87545593]
[1762861556011,0.95280001,3584.6,3584.5,6.87545593]
[1762861556313,1.42260001,3584.6,3584.5,6.87545593]
[1762861557008,0.49640001,3584.6,3584.5,6.87545593]
[1762861558315,1.43190001,3584.6,3584.5,6.87545593]
[1762861558979,1.43190001,3584.6,3584.5,3.68016256]
[1762861559178,2.09474001,3584.6,3584.5,3.68016256]
[1762861559811,2.09474001,3584.6,3584.5,6.46995193]
[1762861560017,1.43190001,3584.6,3584.5,6.46995193]
[1762861560192,1.43110001,3584.6,3584.5,3.68016256]
[1762861560716,1.43110001,3584.6,3584.5,6.46995193]
[1762861560912,1.43110001,3584.6,3584.5,3.68016256]
[1762861561114,1.43110001,3584.6,3584.3,3.68016256]
[1762861561115,0.49440001,3584.4,3584.3,3.68016256]
[1762861561427,0.99320001,3584.2,3584.1,0.001]
[1762861561608,1.74060001,3584.2,3584.1,0.001]
[1762861562641,1.74060001,3584.2,3584.1,3.68116256]
[1762861563311,1.74060001,3584.2,3584.1,0.001]
[1762861574786,3.78345643,3583.9,3583.8,0.001]
[1762861574925,5.06705643,3583.9,3583.8,0.001]
[1762861575233,5.54385643,3583.9,3583.8,0.001]
[1762861579449,5.81036842,3583.9,3583.8,0.001]
[1762861579661,10.48373099,3583.9,3583.8,0.001]
[1762861580946,6.80356843,3583.9,3583.8,0.001]
[1762861583740,7.24101516,3583.9,3583.8,0.001]
[1762861584075,7.56932167,3583.9,3583.8,0.001]
[1762861584497,7.56852167,3583.9,3583.8,0.001]
[1762861584702,7.24021516,3583.9,3583.8,0.001]
[1762861587120,4.05004628,3583.8,3583.7,0.001]
[1762861587278,5.82064629,3583.8,3583.7,0.001]
[1762861588530,5.82064629,3583.8,3583.4,0.001]
[1762861588531,8.4216569,3583.7,3583.4,0.001]
[1762861588817,9.3529569,3583.7,3583.4,0.001]
[1762861597095,5.97462415,3583.7,3583.4,0.001]
[1762861604404,5.48312415,3583.7,3583.4,0.001]
[1762861606300,5.04332415,3583.7,3583.4,0.001]
[1762861606603,5.04332415,3583.7,3583.6,0.4743]
[1762861606804,5.04532415,3583.7,3583.6,0.4743]
[1762861607126,3.78561215,3583.7,3583.6,0.4743]
[1762861607308,3.78561215,3583.7,3583.6,0.9332]
[1762861607699,0.99520001,3583.7,3583.6,0.4743]
[1762861607957,3.78561215,3583.7,3583.6,0.9332]
[1762861608101,0.99520001,3583.7,3583.6,0.9332]
[1762861608306,0.99440001,3583.7,3583.6,0.9332]
[1762861609206,3.78481215,3583.7,3583.6,0.9332]
[1762861610244,0.99440001,3583.7,3583.6,0.9332]
[1762861610423,3.78481215,3583.7,3583.6,0.9332]
[1762861612139,0.99440001,3583.7,3583.6,0.9332]
[1762861612330,0.49640001,3583.7,3583.6,1.30587839]
[1762861612625,0.49640001,3583.7,3583.6,0.9332]
[1762861613414,0.49640001,3583.7,3583.6,3.72369001]
[1762861613651,0.49640001,3583.7,3583.6,7.10202276]
[1762861614061,0.49640001,3583.7,3583.6,7.50752676]
[1762861614211,0.49640001,3583.7,3583.6,8.53764134]
[1762861614851,0.49640001,3583.7,3583.6,10.44035334]
[1762861615053,0.49640001,3584.1,3584.0,4.45539457]
[1762861615217,0.49640001,3584.1,3584.0,8.76592732]
[1762861618236,0.49640001,3584.1,3584.0,8.30702732]
[1762861618442,0.49640001,3584.1,3584.0,5.2723119]
[1762861623466,0.002,3584.1,3584.0,7.1750239]
[1762861629473,0.49640001,3584.1,3584.0,6.7695199]
[1762861629793,0.49640001,3584.1,3584.0,0.4733]
[1762861630163,0.49440001,3584.0,3583.9,2.79021138]
[1762861630581,0.49440001,3584.0,3583.9,3.69381538]
[1762861630769,0.49440001,3584.0,3583.9,4.18741538]
[1762861631155,0.002,3584.1,3584.0,3.19568257]
[1762861631371,0.002,3584.1,3584.0,5.56631464]
[1762861631575,0.002,3584.1,3584.0,7.46902664]
[1762861632150,0.0012,3584.1,3584.0,7.46902664]
[1762861638712,0.0012,3584.1,3584.0,6.82602664]
[1762861639005,0.0012,3584.1,3584.0,7.46802664]
[1762861640906,0.0012,3584.1,3584.0,11.14807606]
[1762861642180,0.0012,3584.1,3584.0,10.50607606]
[1762861642511,0.0012,3584.1,3584.0,11.14807606]
[1762861644294,0.0012,3584.1,3584.0,10.50607606]
[1762861644478,0.0012,3584.1,3584.0,11.14807606]
[1762861646020,0.49560001,3584.1,3584.0,10.50607606]
[1762861646188,0.49560001,3584.1,3584.0,11.14807606]
[1762861646806,0.49560001,3584.1,3584.0,10.50607606]
[1762861647116,0.49560001,3584.1,3584.0,11.14807606]
[1762861648409,0.49560001,3584.1,3584.0,10.50607606]
[1762861648615,0.49560001,3584.1,3584.0,11.14807606]
[1762861649630,0.49560001,3584.1,3584.0,10.50607606]
[1762861649829,0.49560001,3584.1,3584.0,11.14807606]
[1762861650349,0.49560001,3584.1,3584.0,10.01247606]
[1762861650494,0.49560001,3584.1,3584.0,8.77744399]
[1762861650692,0.99070001,3584.1,3584.0,8.77744399]
[1762861650888,0.49560001,3584.1,3584.0,8.77744399]
[1762861651224,0.49560001,3584.1,3584.0,9.27514399]
[1762861651742,0.49560001,3584.1,3584.0,8.63314399]
[1762861651946,0.49560001,3584.1,3584.0,9.27514399]
[1762861654321,0.49560001,3584.1,3584.0,11.17713387]
[1762861655432,0.0012,3584.1,3584.0,11.66123387]
[1762861655610,0.49560001,3584.1,3584.0,11.66123387]
[1762861655810,0.49560001,3584.1,3584.0,11.17713387]
[1762861656130,0.49480001,3584.1,3584.0,11.17713387]
[1762861656332,0.49480001,3584.1,3584.0,10.67943387]
[1762861656627,0.98990001,3584.1,3584.0,10.67943387]
[1762861656827,1.46820001,3584.1,3584.0,8.13544399]
[1762861657011,1.46820001,3584.1,3584.0,7.51773199]
[1762861658228,1.46820001,3584.1,3584.0,6.87573199]
[1762861658431,1.46820001,3584.1,3584.0,7.51773199]
[1762861659401,1.46820001,3584.1,3584.0,6.87573199]
[1762861660655,1.61502001,3584.1,3584.0,3.68004942]
[1762861660969,1.61502001,3584.1,3583.6,0.001]
[1762861660970,0.49440001,3583.7,3583.6,0.001]
[1762861661128,0.74260001,3583.7,3583.6,2.79149001]
[1762861661455,0.74260001,3583.7,3583.6,3.68104942]
[1762861661456,1.22090001,3583.7,3583.6,3.68104942]
[1762861663151,1.22090001,3583.7,3583.6,6.47153943]
[1762861664455,0.74260001,3583.7,3583.6,6.87704343]
[1762861665032,1.22090001,3583.7,3583.6,0.001]
[1762861665230,0.74260001,3583.7,3583.6,2.79149001]
[1762861665646,1.22090001,3583.7,3583.6,2.79149001]
[1762861669680,1.22090001,3583.7,3583.6,0.001]
[1762861670084,1.22090001,3583.7,3583.6,2.79149001]
[1762861670572,1.22090001,3583.7,3583.6,6.47153943]
[1762861674201,0.49440001,3583.7,3583.6,6.47153943]
[1762861674927,0.49440001,3583.7,3583.6,11.9813044]
[1762861675121,0.49440001,3583.7,3583.6,12.4654044]
[1762861675801,0.49440001,3583.7,3583.6,13.7251164]
[1762861678320,0.95130001,3583.7,3583.6,11.4836044]
[1762861678621,0.49440001,3583.7,3583.6,12.6190044]
[1762861679121,0.0004,3584.1,3584.0,2.79017857]
[1762861679321,0.49480001,3584.1,3584.0,4.88912678]
[1762861680233,0.49400001,3584.1,3584.0,4.88912678]
[1762861681821,0.49400001,3584.0,3583.9,6.47026021]
[1762861681989,1.2526,3584.0,3583.6,0.001]
[1762861682189,0.49400001,3583.8,3583.7,6.47044991]
[1762861682504,0.49400001,3583.8,3583.7,3.68004942]
[1762861682698,1.1078,3583.8,3583.6,2.79147732]
[1762861682912,0.79580001,3583.7,3583.6,2.79147732]
[1762861683117,1.24860001,3583.7,3583.6,2.79147732]
[1762861683527,1.24860001,3583.7,3583.6,0.001]
[1762861683528,1.39327001,3583.7,3583.6,0.001]
[1762861683729,1.89127001,3583.7,3583.6,0.001]
[1762861684234,1.74660001,3583.7,3583.6,0.001]
[1762861684929,1.74660001,3583.7,3583.6,2.79149001]
[1762861685092,1.74660001,3583.7,3583.6,0.001]
[1762861688237,1.74660001,3583.7,3583.6,3.68104942]
[1762861688745,1.74660001,3583.7,3583.6,0.001]
[1762861689811,1.74660001,3583.7,3583.6,2.79149001]
[1762861690018,1.74660001,3583.7,3583.6,0.001]
[1762861691246,0.79580001,3583.7,3583.6,2.79149001]
[1762861691664,0.79580001,3583.7,3583.6,0.001]
[1762861691832,1.74660001,3583.7,3583.6,0.001]
[1762861692213,1.24860001,3583.7,3583.6,0.001]
[1762861692612,1.24860001,3583.7,3583.6,2.79149001]
[1762861693930,1.24860001,3583.7,3583.6,0.001]
[1762861694663,1.24860001,3583.7,3583.6,2.79149001]
[1762861695656,0.79580001,3583.7,3583.6,2.79149001]
[1762861696121,1.24860001,3583.7,3583.6,2.79149001]
[1762861696851,1.24860001,3583.7,3583.6,0.001]
[1762861697025,1.24860001,3583.7,3583.6,2.79149001]
[1762861697760,1.24860001,3583.7,3583.6,0.001]
[1762861698362,1.24860001,3583.7,3583.6,2.79149001]
[1762861698676,0.79580001,3583.7,3583.6,2.79149001]
[1762861699928,1.24860001,3583.7,3583.6,0.001]
[1762861702438,1.74660001,3583.7,3583.6,0.001]
[1762861704261,1.74580001,3583.7,3583.6,0.001]
[1762861704465,4.53621215,3583.7,3583.6,0.001]
[1762861705738,1.74580001,3583.7,3583.6,0.001]
[1762861706344,4.53621215,3583.7,3583.6,0.001]
[1762861710732,5.79592415,3583.7,3583.6,0.001]
[1762861711436,6.12423066,3583.7,3583.6,0.001]
[1762861711628,5.79592415,3583.7,3583.6,0.001]
[1762861713185,6.12423066,3583.7,3583.6,0.001]
[1762861714887,5.79592415,3583.7,3583.6,0.001]
[1762861716055,6.12423066,3583.7,3583.6,0.001]
[1762861716255,5.79592415,3583.7,3583.6,0.001]
[1762861721295,6.12423066,3583.7,3583.6,0.001]
[1762861722508,5.79592415,3583.7,3583.6,0.001]
[1762861722705,9.17240114,3583.7,3583.6,0.001]
[1762861722906,9.50070765,3583.7,3583.6,0.001]
[1762861723111,9.50070765,3583.7,3583.1,1e-08]
[1762861723112,6.01100151,3583.2,3583.1,1e-08]
[1762861723308,12.64683035,3583.2,3583.1,1e-08]
[1762861723619,13.12603035,3583.2,3583.1,1e-08]
[1762861724317,6.44391352,3583.2,3583.1,1e-08]
[1762861727336,9.82039051,3583.2,3583.1,1e-08]
[1762861727485,13.53153435,3583.2,3583.1,1e-08]
[1762861727824,13.86627537,3583.2,3583.1,1e-08]
[1762861728184,13.53073435,3583.2,3583.1,1e-08]
[1762861732323,12.75959051,3583.2,3583.1,1e-08]
[1762861732524,6.44311352,3583.2,3583.1,1e-08]
[1762861732727,5.96391352,3583.2,3583.1,1e-08]
[1762861733288,6.44311352,3583.2,3583.1,1e-08]
[1762861734396,13.16509451,3583.2,3583.1,1e-08]
[1762861734597,13.16509451,3583.2,3582.4,1e-08]
[1762861734598,3.24104682,3582.5,3582.4,1e-08]
[1762861734801,6.694132,3582.5,3582.4,1e-08]